bitfinex-derivatives/quotes_ETHF0:USTF0_20250928
["timestamp","ask_amount","ask_price","bid_price","bid_amount"]
[1759040118169,2.00040444,4012.0,4011.9,0.73528015]
[1759040118469,2.00040444,4012.0,4011.9,1.18373015]
[1759040120574,2.21930444,4012.0,4011.9,1.18373015]
[1759040123572,2.42710444,4012.0,4011.9,1.18373015]
[1759040129387,2.92625494,4012.0,4011.9,1.18373015]
[1759040130589,3.25315494,4012.0,4011.9,1.18373015]
[1759040132689,2.96375177,4012.0,4011.9,1.18373015]
[1759040134184,3.41218177,4012.0,4011.9,1.18373015]
[1759040134587,3.41218177,4012.0,4011.9,0.97093015]
[1759040135688,5.12106853,4012.0,4011.9,0.31338015]
[1759040137192,5.12106853,4012.0,4011.9,0.00238015]
[1759040137390,5.45371358,4012.0,4011.9,0.00238015]
[1759040141086,5.37191358,4012.0,4011.9,0.31958015]
[1759040145896,5.37191358,4012.0,4011.9,0.00238015]
[1759040147798,5.37191358,4012.0,4011.9,0.31958015]
[1759040147990,5.45371358,4012.0,4011.9,0.00238015]
[1759040166206,1.2027,4011.4,4011.3,0.3129]
[1759040166400,3.66158231,4011.4,4011.3,0.3129]
[1759040166597,3.66158231,4011.4,4011.3,0.519]
[1759040167199,3.66158231,4011.4,4011.3,0.52140541]
[1759040170312,3.66158231,4011.4,4011.3,0.31530541]
[1759040175715,3.66158231,4011.4,4011.3,0.52370541]
[1759040180714,0.93309555,4011.4,4011.3,0.74790541]
[1759040180919,3.2078,4011.5,4011.3,0.43500541]
[1759040181116,3.2078,4011.5,4011.4,0.3117]
[1759040181417,5.41716612,4011.5,4011.4,0.7443]
[1759040184117,5.62616612,4011.5,4011.4,0.7443]
[1759040184320,2.41836612,4011.5,4011.4,0.7443]
[1759040189825,2.41836612,4011.5,4011.4,1.1928]
[1759040191121,2.86685612,4011.5,4011.4,1.1928]
[1759040191823,2.41836612,4011.5,4011.4,1.1928]
[1759040192430,2.86685612,4011.5,4011.4,1.1928]
[1759040193523,1.91788676,4011.5,4011.4,1.1928]
[1759040194124,2.41687164,4011.5,4011.4,1.1928]
[1759040194326,1.91788676,4011.5,4011.4,1.1928]
[1759040194624,0.209,4011.5,4011.4,1.1928]
[1759040194819,0.209,4011.5,4011.4,0.7443]
[1759040195014,0.65749,4011.5,4011.4,0.7443]
[1759040202241,1.15667188,4011.5,4011.4,0.7443]
[1759040206335,0.65749,4011.5,4011.4,0.7443]
[1759040206541,4.33101451,4012.0,4011.6,0.7717]
[1759040206542,0.65327,4011.7,4011.6,0.7717]
[1759040206741,0.65327,4011.7,4011.6,1.0217]
[1759040214047,0.44847,4011.7,4011.6,1.0217]
[1759040214245,0.66557,4011.7,4011.6,1.0217]
[1759040216147,0.00211451,4012.0,4011.9,1.21425]
[1759040216337,0.00211451,4012.0,4011.9,1.46425]
[1759040216649,0.21921451,4012.0,4011.9,1.46425]
[1759040216849,0.66764451,4012.0,4011.9,1.46425]
[1759040217250,0.21921451,4012.0,4011.9,1.46425]
[1759040218048,0.00211451,4012.0,4011.9,1.46425]
[1759040220855,0.00211451,4012.0,4011.9,6.46425]
[1759040221056,0.00211451,4012.0,4011.9,6.66805654]
[1759040221752,3.2078,4012.5,4012.4,0.44839]
[1759040221947,0.03047042,4012.8,4012.7,1.21416]
[1759040222148,0.03047042,4012.8,4012.7,1.46416]
[1759040222747,0.03230116,4012.8,4012.7,1.46416]
[1759040222949,0.00183074,4012.8,4012.7,1.46416]
[1759040227856,0.00183074,4012.8,4012.7,3.46379395]
[1759040228152,0.66533,4013.9,4013.7,0.44824]
[1759040228344,0.66533,4013.9,4013.8,0.7658]
[1759040228748,3.2078,4014.1,4014.0,0.131]
[1759040228948,3.2078,4014.1,4014.0,1.1468]
[1759040229148,3.97579657,4014.1,4014.0,1.1468]
[1759040229657,3.64679657,4014.1,4014.0,1.1468]
[1759040235860,3.64679657,4014.1,4014.0,0.8968]
[1759040236152,3.64679657,4014.1,4014.0,1.1468]
[1759040238059,4.09499657,4014.1,4014.0,1.1468]
[1759040240162,4.42219657,4014.1,4014.0,1.1468]
[1759040252265,4.91827898,4014.1,4014.0,1.1468]
[1759040252970,4.42219657,4014.1,4014.0,1.1468]
[1759040253370,4.91843783,4014.1,4014.0,1.1468]
[1759040256378,1.71063783,4014.1,4014.0,1.1468]
[1759040256581,3.41757056,4014.1,4014.0,1.1468]
[1759040266897,0.44828,4013.4,4013.3,1.34300193]
[1759040267186,0.766,4013.3,4013.2,3.2078]
[1759040267492,1.26355105,4013.3,4013.2,3.2078]
[1759040268385,1.26355105,4013.3,4013.2,3.531]
[1759040269388,0.766,4013.3,4013.2,3.531]
[1759040271698,0.766,4013.3,4013.2,3.7357]
[1759040272392,0.4374,4013.3,4013.2,3.9497]
[1759040273894,0.4374,4013.3,4013.2,4.1997]
[1759040276895,0.44828,4013.4,4013.2,4.1997]
[1759040277192,0.44828,4013.4,4013.3,0.7516]
[1759040277395,0.66228,4013.4,4013.3,0.7516]
[1759040278096,0.214,4013.4,4013.3,1.19989]
[1759040278396,0.214,4013.4,4013.3,1.44989]
[1759040278899,0.44824,4013.7,4013.3,2.27653273]
[1759040279195,0.214,4013.9,4013.8,1.19983]
[1759040279586,5.3651293,4014.1,4013.7,0.25]
[1759040279587,5.1309293,4014.1,4014.0,1.32871]
[1759040279788,6.15912101,4014.1,4014.0,0.6645]
[1759040279989,0.87541,4014.0,4013.9,0.5696]
[1759040280195,1.69040171,4014.0,4013.9,0.5696]
[1759040281496,1.69040171,4014.0,4013.9,0.7856]
[1759040285292,1.69040171,4014.0,4013.9,0.5356]
[1759040295309,3.39733444,4014.0,4013.9,0.5356]
[1759040295503,0.87458,4013.4,4013.3,0.3245]
[1759040295702,3.40548895,4013.4,4013.3,0.3245]
[1759040295902,3.40548895,4013.4,4012.9,5.538]
[1759040296111,0.7534,4013.3,4013.2,3.5323]
[1759040298715,0.7534,4013.3,4013.2,3.7495]
[1759040299015,1.25030353,4013.3,4013.2,3.7495]
[1759040299312,0.7534,4013.3,4013.2,3.7495]
[1759040300106,0.87461,4013.1,4013.0,0.3245]
[1759040300307,3.65551658,4013.1,4013.0,0.3245]
[1759040302307,1.20174,4012.8,4012.7,3.7495]
[1759040302514,2.90867273,4012.8,4012.7,3.7495]
[1759040302704,2.90867273,4012.8,4012.7,3.9555]
[1759040304114,2.58157273,4012.8,4012.7,3.9555]
[1759040307514,2.90107273,4012.8,4012.7,3.9555]
[1759040309613,2.58157273,4012.8,4012.7,3.9555]
[1759040314418,2.13323273,4012.8,4012.7,3.9555]
[1759040314722,2.15527273,4012.8,4012.7,3.9555]
[1759040315113,2.37257273,4012.8,4012.7,3.9555]
[1759040316023,0.66564,4012.8,4012.7,3.9555]
[1759040316219,2.37257273,4012.8,4012.7,3.9555]
[1759040316619,0.66564,4012.8,4012.7,3.9555]
[1759040317824,1.20324,4012.8,4012.7,3.9555]
[1759040318523,1.20324,4012.8,4012.7,0.7477]
[1759040319518,0.8838,4012.3,4012.2,3.6511]
[1759040319726,2.8822719,4012.3,4012.2,3.6511]
[1759040320024,2.8822719,4012.3,4012.2,3.9639]
[1759040326126,1.9984719,4012.3,4012.2,4.41231]
[1759040327817,1.9984719,4012.3,4012.2,4.66231]
[1759040328723,0.25,4012.4,4012.3,1.2045]
[1759040332934,0.44838,4012.5,4012.4,1.20449]
[1759040333233,0.94615796,4012.5,4012.4,1.20449]
[1759040334829,1.16345796,4012.5,4012.4,1.20449]
[1759040335430,1.16335872,4012.5,4012.4,1.20449]
[1759040337029,0.49767872,4012.5,4012.4,1.20449]
[1759040337332,3.2078,4013.1,4013.0,1.33582]
[1759040337540,3.70558378,4013.1,4013.0,1.33582]
[1759040337834,3.92108378,4013.1,4013.0,1.33582]
[1759040338533,3.92108378,4013.1,4013.0,0.8875]
[1759040338737,4.13438378,4013.1,4013.0,0.8875]
[1759040339939,4.44638378,4013.1,4013.0,0.8875]
[1759040341334,0.4288,4012.7,4012.6,0.2127]
[1759040341536,3.4376319,4012.7,4012.6,0.5436]
[1759040341840,3.935439,4012.7,4012.6,0.3309]
[1759040344044,3.935439,4012.7,4012.6,0.5436]
[1759040353549,3.935439,4012.7,4012.6,0.99197]
[1759040353850,3.175079,4012.7,4012.6,1.21287]
[1759040354446,3.623439,4012.7,4012.6,1.21287]
[1759040354952,3.503979,4012.7,4012.6,1.21287]
[1759040355640,3.503979,4012.7,4012.6,0.99197]
[1759040355952,3.175079,4012.7,4012.6,1.21287]
[1759040357654,2.925079,4012.7,4012.6,1.21287]
[1759040357854,3.175079,4012.7,4012.6,1.21287]
[1759040359758,3.623439,4012.7,4012.6,1.21287]
[1759040359960,3.952339,4012.7,4012.6,1.21287]
[1759040362459,3.503979,4012.7,4012.6,1.21287]
[1759040364168,1.5055071,4012.7,4012.6,1.21287]
[1759040364368,0.7133071,4012.7,4012.6,1.21287]
[1759040364564,0.9633071,4012.7,4012.6,1.21287]
[1759040365170,1.2423071,4012.7,4012.6,1.21287]
[1759040366075,0.9241071,4012.7,4012.6,1.21287]
[1759040374879,0.4978071,4012.7,4012.6,1.21287]
[1759040378277,1.9984719,4012.9,4012.6,0.7645]
[1759040378477,1.9984719,4012.9,4012.5,1.46720193]
[1759040378478,1.9984719,4012.9,4012.8,0.87454]
[1759040378680,2.20691727,4012.9,4012.8,1.21044]
[1759040382290,2.41601727,4012.9,4012.8,1.21044]
[1759040382492,2.94501727,4012.9,4012.8,1.21044]
[1759040384792,2.94501727,4012.9,4012.8,0.7621]
[1759040387696,3.39334727,4012.9,4012.8,0.7621]
[1759040393402,3.07514727,4012.9,4012.8,0.7621]
[1759040395001,2.62681727,4012.9,4012.8,0.7621]
[1759040395804,3.07514727,4012.9,4012.8,0.7621]
[1759040398794,0.49889999,4012.9,4012.8,1.21044]
[1759040399000,0.94722999,4012.9,4012.8,1.21044]
[1759040399305,0.44833,4012.9,4012.8,1.21044]
[1759040401103,0.44833,4012.9,4012.8,0.7621]
[1759040401302,0.66093,4012.9,4012.8,0.7621]
[1759040401699,2.58144728,4012.9,4012.8,0.7621]
[1759040403502,2.58144728,4012.9,4012.8,1.21044]
[1759040403702,0.87343,4012.9,4012.8,1.21044]
[1759040408308,0.87343,4012.9,4012.8,4.41824]
[1759040409608,1.37255531,4012.9,4012.8,4.41824]
[1759040409809,0.87343,4012.9,4012.8,4.41824]
[1759040410214,1.37262528,4012.9,4012.8,4.41824]
[1759040410908,0.71179528,4012.9,4012.8,4.41824]
[1759040411500,0.49919528,4012.9,4012.8,4.41824]
[1759040411704,40.8,4014.8,4013.6,0.7748]
[1759040411705,3.6433,4013.7,4013.6,0.7748]
[1759040411906,4.09154,4013.7,4013.6,1.0248]
[1759040412105,4.40864,4013.7,4013.6,1.0248]
[1759040413911,1.20084,4013.7,4013.6,1.0248]
[1759040419410,0.7526,4013.7,4013.6,1.0248]
[1759040419608,0.2129,4013.7,4013.6,1.0248]
[1759040419809,0.2129,4014.0,4013.9,1.22302]
[1759040420009,0.2129,4014.0,4013.9,1.47302]
[1759040421412,0.00219657,4014.1,4014.0,1.01381]
[1759040421623,0.00219657,4014.1,4014.0,3.06062728]
[1759040421916,0.00219657,4014.1,4014.0,1.35261]
[1759040423915,0.00219657,4014.1,4014.0,3.06062728]
[1759040424518,0.00219657,4014.1,4014.0,6.26842728]
[1759040438719,0.00219657,4014.1,4014.0,4.56041]
[1759040440114,3.2078,4014.8,4014.7,1.19083]
[1759040440115,3.4303,4014.8,4014.7,1.19083]
[1759040440320,3.92453584,4014.8,4014.7,1.44083]
[1759040440911,3.9277068,4014.8,4014.7,1.44267712]
[1759040441625,3.7052068,4014.8,4014.7,1.44267712]
[1759040441822,0.4974068,4014.8,4014.7,3.43947838]
[1759040445215,0.00317096,4014.8,4014.7,3.43947838]
[1759040447625,3.2078,4015.3,4015.2,1.19078]
[1759040447826,2.43690126,4015.5,4015.4,1.19075]
[1759040448027,3.69887097,4015.5,4015.4,1.19075]
[1759040448625,3.70202794,4015.5,4015.4,1.19075]
[1759040449016,0.93778668,4015.5,4015.4,1.19075]
[1759040449221,0.49768668,4015.5,4015.4,3.43755126]
[1759040451326,0.00315697,4015.5,4015.4,3.43755126]
[1759040461132,5.81149688,4015.5,4015.1,0.25]
[1759040461324,0.7426,4015.2,4015.1,0.25]
[1759040461726,0.7426,4015.2,4015.1,0.5819]
[1759040461927,1.19069,4015.2,4015.1,0.5819]
[1759040462128,1.19069,4015.2,4015.1,0.3319]
[1759040462428,1.68452099,4015.2,4015.1,0.7996]
[1759040463232,1.68452099,4015.2,4015.1,0.5496]
[1759040463433,1.68452099,4015.2,4015.1,0.7996]
[1759040464532,1.68452099,4015.2,4015.1,0.5819]
[1759040464837,1.68452099,4015.2,4015.1,0.7996]
[1759040466735,1.68452099,4015.2,4015.1,0.3319]
[1759040467339,1.1907,4015.0,4014.9,0.5819]
[1759040467635,3.68133225,4015.0,4014.9,0.5819]
[1759040469137,3.68133225,4015.0,4014.9,0.3319]
[1759040470142,3.6816821,4015.0,4014.9,0.3319]
[1759040470737,1.18152,4014.8,4014.7,0.32684712]
[1759040470933,1.67570084,4014.8,4014.7,0.00184712]
[1759040471236,3.6725021,4014.8,4014.7,0.53094712]
[1759040471442,1.15520084,4014.8,4014.7,2.74714838]
[1759040471658,0.94230084,4014.8,4014.7,0.75034712]
[1759040472535,1.15520084,4014.8,4014.7,0.75034712]
[1759040473640,1.67570084,4014.8,4014.7,1.00034712]
[1759040473939,1.18152,4014.8,4014.7,0.25184712]
[1759040474245,1.18152,4014.8,4014.7,0.57684712]
[1759040474445,0.66102,4014.8,4014.7,1.00034712]
[1759040474746,0.66098,4015.2,4015.1,0.7485]
[1759040474947,0.91098,4015.2,4015.1,0.7485]
[1759040475430,3.2078,4015.3,4015.1,0.4235]
[1759040475633,0.44807,4015.3,4015.2,0.7485]
[1759040480241,0.00315697,4015.5,4015.4,0.7485]
[1759040480439,0.00315697,4015.5,4015.4,2.99530126]
[1759040480944,0.00315697,4015.5,4015.4,6.20310126]
[1759040481146,0.00315697,4015.5,4015.4,11.20310126]
[1759040481647,0.00315697,4015.5,4015.4,12.09790994]
[1759040483152,0.00315697,4015.5,4015.4,11.20310126]
[1759040483644,0.00315697,4015.5,4015.4,12.09790994]
[1759040484153,0.00315697,4015.5,4015.4,11.20310126]
[1759040486943,0.00315697,4015.5,4015.4,6.20310126]
[1759040491551,0.00315697,4015.5,4015.4,6.65115126]
[1759040500766,0.00315697,4015.5,4015.4,6.35963611]
[1759040501255,0.45119697,4015.5,4015.4,5.91158611]
[1759040501461,0.65949697,4015.5,4015.4,4.2063]
[1759040502056,0.65949697,4015.5,4015.4,4.65435]
[1759040504961,2.89998308,4015.5,4015.4,3.2078]
[1759040505262,0.7435,4015.4,4015.3,1.1582]
[1759040505563,0.2083,4015.4,4015.3,2.71628611]
[1759040510771,0.45119697,4015.5,4015.4,0.761]
[1759040514569,0.87799697,4015.5,4015.4,0.761]
[1759040514768,2.89918308,4015.5,4015.4,0.761]
[1759040515169,1.19389697,4015.5,4015.4,0.761]
[1759040519574,0.00315697,4015.5,4015.4,2.91433611]
[1759040521676,0.00315697,4015.5,4015.4,6.12213611]
[1759040524189,0.44799,4016.0,4015.9,1.195]
[1759040524478,0.44799,4016.0,4015.9,3.15028611]
[1759040525277,0.00303192,4016.0,4015.9,6.35808611]
[1759040526977,0.00303192,4016.0,4015.9,6.5547507]
[1759040527165,0.00303192,4016.0,4015.9,6.35808611]
[1759040527569,0.00303192,4016.0,4015.9,4.6528]
[1759040527773,0.00303192,4016.0,4015.9,6.35808611]
[1759040527976,0.00303192,4016.0,4015.9,6.55596296]
[1759040528177,0.00303192,4016.0,4015.9,4.6528]
[1759040528383,0.00303192,4016.0,4015.9,6.35808611]
[1759040532578,0.45102192,4016.0,4015.9,6.35808611]
[1759040532877,0.67322192,4016.0,4015.9,6.35808611]
[1759040533076,0.67322192,4016.0,4015.9,6.96218611]
[1759040533673,2.91960803,4016.0,4015.9,4.3323]
[1759040533873,2.91960803,4016.0,4015.9,4.5823]
[1759040534074,0.89352192,4016.0,4015.9,4.804]
[1759040535977,0.00303192,4016.0,4015.9,4.804]
[1759040542282,0.00303192,4016.0,4015.9,5.252]
[1759040542984,0.45102192,4016.0,4015.9,5.252]
[1759040543982,0.00303192,4016.0,4015.9,5.252]
[1759040544584,0.45102192,4016.0,4015.9,5.252]
[1759040545178,0.67612192,4016.0,4015.9,6.50928611]
[1759040546477,0.67612192,4016.0,4015.9,6.25928611]
[1759040546784,0.67612192,4016.0,4015.9,6.50928611]
[1759040547480,0.45102192,4016.0,4015.9,6.50928611]
[1759040547688,0.45102192,4016.0,4015.9,6.95728611]
[1759040548289,0.45102192,4016.0,4015.9,7.85143673]
[1759040548475,0.00303192,4016.0,4015.9,7.85143673]
[1759040550580,0.00303192,4016.0,4015.9,6.95728611]
[1759040551385,0.00303192,4016.0,4015.9,8.29851205]
[1759040553282,0.00303192,4016.0,4015.9,6.95728611]
[1759040556390,0.00303192,4016.0,4015.9,8.29969155]
[1759040557193,0.45102192,4016.0,4015.9,8.29969155]
[1759040559289,0.45102192,4016.0,4015.9,7.85169155]
[1759040559494,0.45102192,4016.0,4015.9,4.554]
[1759040559697,2.91660803,4016.0,4015.9,4.804]
[1759040560390,2.91660803,4016.0,4015.9,5.69906742]
[1759040560590,1.21132192,4016.0,4015.9,5.69906742]
[1759040560783,6.29152192,4016.0,4015.9,0.6041]
[1759040561790,1.79438979,4016.0,4015.9,0.6041]
[1759040567402,6.79438979,4016.0,4015.9,0.6041]
[1759040568903,7.04438979,4016.0,4015.9,0.6041]
[1759040569696,7.04438979,4016.0,4015.9,2.341]
[1759040570194,1.2083,4015.9,4015.8,0.26390603]
[1759040570400,1.20831,4015.8,4015.7,0.7487]
[1759040570602,9.91897787,4015.8,4015.7,0.7487]
[1759040572004,10.16897787,4015.8,4015.7,0.7487]
[1759040573604,10.16897787,4015.8,4015.7,0.20094]
[1759040573806,1.19764,4015.5,4015.4,1.5542]
[1759040574005,1.95050787,4015.5,4015.4,1.5542]
[1759040574699,1.95050787,4015.5,4015.4,0.3235]
[1759040574904,1.9517894,4015.5,4015.4,0.3235]
[1759040575203,3.94713425,4015.5,4015.4,0.3235]
[1759040577596,3.94713425,4015.5,4015.4,0.5338]
[1759040584197,1.19768,4015.2,4015.1,3.0354]
[1759040584404,3.94717425,4015.2,4015.1,3.0354]
[1759040584603,3.94717425,4015.2,4015.1,0.3235]
[1759040585812,0.7217,4015.0,4014.9,3.2078]
[1759040586109,1.19771,4014.9,4014.7,0.00184712]
[1759040586309,3.49909425,4014.8,4014.7,0.00184712]
[1759040588514,3.49909425,4014.8,4014.7,0.32534712]
[1759040588814,3.49909425,4014.8,4014.7,0.00184712]
[1759040593916,3.94721425,4014.8,4014.7,0.00184712]
[1759040597619,5.9425591,4014.8,4014.7,0.00184712]
[1759040598719,46.7425591,4014.8,4014.7,0.00184712]
[1759040599317,1.31395,4014.5,4014.4,2.56543712]
[1759040599525,9.2665891,4014.5,4014.4,2.06000712]
[1759040599730,1.20661,4014.0,4013.9,0.3345]
[1759040599919,7.16390425,4014.0,4013.9,0.3345]
[1759040600318,7.16390425,4014.0,4013.9,0.33672564]
[1759040603321,7.16390425,4014.0,4013.9,0.56022564]
[1759040607331,6.85050425,4014.0,4013.9,0.77182564]
[1759040607926,6.38060425,4014.0,4013.9,0.77182564]
[1759040608229,6.63060425,4014.0,4013.9,0.77182564]
[1759040608631,6.84310425,4014.0,4013.9,0.77182564]
[1759040609634,7.17000425,4014.0,4013.9,0.77182564]
[1759040614129,7.17000425,4014.0,4013.9,0.56022564]
[1759040617135,7.17000425,4014.0,4013.9,0.33672564]
[1759040620539,8.58951736,4014.0,4013.9,0.33672564]
[1759040621839,5.38171736,4014.0,4013.9,0.33672564]
[1759040624940,5.38171736,4014.0,4013.9,0.55182564]
[1759040625346,3.67428838,4014.0,4013.9,0.55182564]
[1759040631255,3.67428838,4014.0,4013.9,0.33672564]
[1759040640763,3.67428838,4014.0,4013.9,0.00222564]
[1759040641066,3.75448838,4014.0,4013.9,0.00222564]
[1759040641365,5.46191736,4014.0,4013.9,0.00222564]
[1759040641559,5.46191736,4014.0,4013.9,0.34272564]
[1759040643661,5.38171736,4014.0,4013.9,0.34272564]
[1759040644669,3.67428838,4014.0,4013.9,0.34272564]
[1759040647363,3.67428838,4014.0,4013.9,0.00222564]
[1759040647571,3.75448838,4014.0,4013.9,0.00222564]
[1759040647866,5.46191736,4014.0,4013.9,0.00222564]
[1759040649066,5.46191736,4014.0,4013.9,0.34272564]
[1759040649763,3.75448838,4014.0,4013.9,0.34272564]
[1759040649963,3.67428838,4014.0,4013.9,0.34272564]
[1759040652372,3.68126678,4014.0,4013.9,0.34272564]
[1759040662274,1.2756278,4014.0,4013.9,0.55892564]
[1759040662473,0.5111278,4014.0,4013.9,7.91977462]
[1759040662679,0.32467258,4014.0,4013.9,7.91977462]
[1759040663774,0.32467258,4014.0,4013.9,9.67567462]
[1759040663978,0.32467258,4014.0,4013.9,9.92567462]
[1759040664275,0.32467258,4014.0,4013.9,9.47745462]
[1759040665079,0.32467258,4014.0,4013.9,7.77002564]
[1759040665281,0.4482,4014.1,4014.0,0.87591]
[1759040665577,2.15562898,4014.1,4014.0,1.33121]
[1759040668571,1.70742898,4014.1,4014.0,1.33121]
[1759040670383,1.70742898,4014.1,4014.0,1.53271]
[1759040674884,0.5647,4014.5,4014.0,1.53271]
[1759040674885,0.2187,4014.3,4014.2,0.4277]
[1759040675184,1.92612898,4014.3,4014.2,1.45479]
[1759040675392,2.88002735,4014.3,4014.2,1.45479]
[1759040675592,3.09072735,4014.3,4014.2,1.45479]
[1759040675891,3.40542735,4014.3,4014.2,1.45479]
[1759040676581,3.40542735,4014.3,4014.2,1.0066]
[1759040677381,0.4482,4014.1,4014.0,0.2015]
[1759040677582,4.60715796,4014.1,4014.0,0.2015]
[1759040677787,3.40544735,4014.1,4014.0,0.2015]
[1759040678191,3.40544735,4014.1,4014.0,0.5304]
[1759040680594,3.6956116,4014.1,4014.0,0.5304]
[1759040682294,3.6956116,4014.1,4014.0,0.2015]
[1759040684389,3.6956116,4014.1,4014.0,0.9359]
[1759040684995,3.6956116,4014.1,4014.0,1.2648]
[1759040686691,1.24981837,4014.1,4014.0,1.4873]
[1759040686892,0.50571837,4014.1,4014.0,1.8189]
[1759040687294,3.6956116,4014.1,4014.0,1.8189]
[1759040687498,3.6956116,4014.1,4014.0,1.6137]
[1759040687698,3.9456116,4014.1,4014.0,1.6137]
[1759040688100,3.4974116,4014.1,4014.0,1.6137]
[1759040688300,3.9456116,4014.1,4014.0,1.6137]
[1759040692203,3.94517859,4014.1,4014.0,1.6137]
[1759040695007,3.94517859,4014.1,4014.0,3.3697]
[1759040703714,3.94517859,4014.1,4014.0,3.0208]
[1759040704314,3.94517859,4014.1,4014.0,2.6919]
[1759040705315,8.94517859,4014.1,4014.0,2.6919]
[1759040710217,12.15297859,4014.1,4014.0,2.6919]
[1759040711818,12.15297859,4014.1,4014.0,3.0173]
[1759040713119,12.15297859,4014.1,4014.0,2.6919]
[1759040714524,12.15297859,4014.1,4014.0,3.0173]
[1759040717818,12.15297859,4014.1,4014.0,2.6919]
[1759040721529,0.44824,4013.7,4013.6,0.3254]
[1759040721724,3.93891859,4013.7,4013.6,0.3254]
[1759040722024,3.93891859,4013.7,4013.0,0.1241]
[1759040722025,0.65801,4013.1,4013.0,0.8715]
[1759040722222,3.62338859,4013.1,4013.0,0.8715]
[1759040722627,3.62584938,4013.1,4013.0,0.8735215]
[1759040723421,5.95054261,4013.1,4013.0,0.8735215]
[1759040723622,5.95054261,4013.1,4013.0,0.0020215]
[1759040724129,5.95054261,4013.1,4013.0,0.3245215]
[1759040727029,5.95054261,4013.1,4012.5,0.6707]
[1759040727030,1.21677,4012.6,4012.5,0.6707]
[1759040727235,7.17822999,4012.6,4012.5,0.6707]
[1759040727429,7.17822999,4012.6,4012.5,0.5466]
[1759040727623,7.17822999,4012.6,4012.5,0.3225]
[1759040728029,7.17822999,4012.6,4012.3,0.64591]
[1759040728030,1.21679,4012.4,4012.3,0.64591]
[1759040728330,1.97285676,4012.4,4012.3,0.64815765]
[1759040729936,1.97285676,4012.4,4012.3,0.32565765]
[1759040731341,1.97285676,4012.4,4012.3,0.64815765]
[1759040733042,1.64575676,4012.4,4012.3,1.07775765]
[1759040733542,1.42115676,4012.4,4012.3,1.07775765]
[1759040739748,1.97285676,4012.4,4012.3,0.64815765]
[1759040740545,5.39120022,4012.4,4012.3,0.64815765]
[1759040741547,5.39120022,4012.4,4012.3,0.14045963]
[1759040741841,1.21687,4011.7,4011.6,0.7521]
[1759040742042,3.17604173,4011.7,4011.6,0.7521]
[1759040742650,3.17604173,4011.7,4011.6,0.75470009]
[1759040743348,3.68168804,4011.7,4011.6,0.75470009]
[1759040743840,3.68168804,4011.7,4011.6,0.54920009]
[1759040748458,3.68168804,4011.7,4011.6,0.00260009]
[1759040752955,1.39541631,4011.7,4011.6,0.75470009]
[1759040753158,3.35458804,4011.7,4011.6,0.75470009]
[1759040753457,3.68178804,4011.7,4011.6,0.75470009]
[1759040755259,3.68178804,4011.7,4011.6,0.54920009]
[1759040755754,3.68178804,4011.7,4011.6,0.00260009]
[1759040759861,3.68178804,4011.7,4011.0,0.1266]
[1759040759862,1.12129,4011.4,4011.0,0.3099]
[1759040760165,7.84348346,4011.1,4011.0,0.3099]
[1759040760460,8.59912977,4011.1,4011.0,0.3099]
[1759040760963,8.59912977,4011.1,4011.0,0.31228471]
[1759040761150,8.59912977,4011.1,4011.0,0.00238471]
[1759040761352,1.21739,4010.6,4010.5,0.3099]
[1759040761564,6.89000804,4010.6,4010.5,0.3099]
[1759040761751,0.2214,4010.2,4010.1,0.3099]
[1759040761956,2.72797173,4010.2,4010.1,0.7373]
[1759040762464,2.73054547,4010.2,4010.1,0.73979364]
[1759040762660,4.94711966,4010.2,4010.1,0.73979364]
[1759040763055,4.94711966,4010.2,4010.1,0.31239364]
[1759040763359,4.94711966,4010.2,4010.1,0.53489364]
[1759040763563,4.94711966,4010.2,4010.1,0.73979364]
[1759040763564,4.61991966,4010.2,4010.1,0.73979364]
[1759040763758,2.91074793,4010.2,4010.1,0.73979364]
[1759040764666,3.23794793,4010.2,4010.1,0.73979364]
[1759040765665,4.94711966,4010.2,4010.1,0.31239364]
[1759040765867,3.23794793,4010.2,4010.1,0.31239364]
[1759040766061,3.23794793,4010.2,4010.1,0.53489364]
[1759040766664,4.94711966,4010.2,4010.1,0.53489364]
[1759040766858,4.94711966,4010.2,4010.1,0.00249364]
[1759040770563,0.7732,4009.6,4009.5,0.3121]
[1759040770771,0.2224,4009.1,4009.0,0.8849]
[1759040771070,4.11484346,4009.1,4009.0,0.8849]
[1759040771565,4.44254346,4009.1,4009.0,0.00291746]
[1759040771776,4.94911972,4009.1,4009.0,0.00291746]
[1759040773170,0.4455,4008.6,4008.5,0.3121]
[1759040773471,5.94117173,4008.6,4008.5,0.3121]
[1759040773671,5.94117173,4008.6,4008.5,0.5249]
[1759040773879,5.94117173,4008.6,4008.5,0.6566]
[1759040774266,5.94117173,4008.6,4008.5,0.65981662]
[1759040774465,5.94117173,4008.6,4008.5,0.31531662]
[1759040775768,5.94117173,4008.6,4008.5,0.00321662]
[1759040775972,7.65034346,4008.6,4008.5,0.00321662]
[1759040776173,8.15516378,4008.6,4008.5,0.00321662]
[1759040776370,8.15496381,4008.6,4008.5,0.00321662]
[1759040779671,6.44579208,4008.6,4008.5,0.00321662]
[1759040779871,5.61347173,4008.6,4008.5,0.88371662]
[1759040780479,5.94117173,4008.6,4008.5,0.88371662]
[1759040781376,5.69017173,4008.6,4008.5,0.88371662]
[1759040781582,5.94117173,4008.6,4008.5,0.88371662]
[1759040782676,5.69017173,4008.6,4008.5,0.88371662]
[1759040782872,5.94117173,4008.6,4008.5,0.88371662]
[1759040783481,5.69017173,4008.6,4008.5,0.88371662]
[1759040783673,5.39037173,4008.6,4008.5,0.88371662]
[1759040786791,5.60497173,4008.6,4008.5,0.88371662]
[1759040787189,5.91577173,4008.6,4008.5,0.88371662]
[1759040788591,6.10959043,4008.6,4008.5,0.88371662]
[1759040789184,6.55841043,4008.6,4008.5,0.88371662]
[1759040789692,6.10959043,4008.6,4008.5,0.88371662]
[1759040790992,5.85859043,4008.6,4008.5,0.88371662]
[1759040791188,6.10959043,4008.6,4008.5,0.88371662]
[1759040791385,6.86921043,4008.6,4008.5,0.54011662]
[1759040791688,6.86921043,4008.6,4008.5,0.31531662]
[1759040792190,6.86921043,4008.6,4008.5,0.00321662]
[1759040792580,6.86921043,4008.6,4008.5,0.31741662]
[1759040792784,6.86921043,4008.6,4008.5,0.54221662]
[1759040792996,6.42039043,4008.6,4008.5,1.33054662]
[1759040793186,6.10959043,4008.6,4008.5,0.88171662]
[1759040793491,6.55841043,4008.6,4008.5,0.88171662]